bitfinex-derivatives/quotes_ETHF0:USTF0_20240830
["timestamp","ask_amount","ask_price","bid_price","bid_amount"]
[1725035310909,0.40863,2447.3,2447.0,0.00612845]
[1725035311129,3.2078,2447.1,2447.0,0.00612845]
[1725035311413,3.2078,2447.1,2445.7,0.8364]
[1725035311414,3.61647,2447.1,2446.0,3.2078]
[1725035311619,7.38600997,2447.1,2446.3,3.2078]
[1725035311807,4.17820997,2447.1,2446.3,3.2078]
[1725035312113,3.2078,2447.0,2446.3,3.2078]
[1725035312422,4.68902515,2446.9,2446.5,0.00612845]
[1725035312913,3.2078,2447.0,2446.5,0.00612845]
[1725035313113,40.8,2447.4,2446.5,0.00612845]
[1725035313411,40.8,2447.4,2447.0,3.2078]
[1725035313610,40.8,2447.4,2446.5,0.00612845]
[1725035313611,4.51130439,2447.3,2446.7,3.2078]
[1725035313811,3.2078,2447.2,2446.7,3.2078]
[1725035314227,3.2078,2446.9,2446.5,0.00612845]
[1725035314714,3.2078,2446.6,2445.1,3.2078]
[1725035314904,3.2078,2446.6,2445.2,3.2078]
[1725035314905,3.2078,2445.9,2445.2,3.2078]
[1725035315105,3.2078,2445.9,2444.6,0.4096]
[1725035315106,3.2078,2446.3,2445.5,3.2078]
[1725035315331,4.46554584,2446.5,2445.5,3.2078]
[1725035315332,4.46554584,2445.8,2445.5,3.2078]
[1725035315617,0.40896,2445.4,2445.2,3.2078]
[1725035315916,0.40898,2445.2,2445.1,0.00612845]
[1725035316112,4.0896,2445.2,2443.9,3.2078]
[1725035316314,4.0896,2445.2,2443.3,6.7535602]
[1725035316315,45.1921363,2445.2,2444.5,3.2078]
[1725035316509,3.2078,2445.6,2444.8,3.2078]
[1725035316715,3.2078,2445.9,2444.8,3.2078]
[1725035317015,7.98176,2446.4,2443.9,0.8103]
[1725035317016,4.3921363,2445.5,2445.1,0.00612845]
[1725035317212,0.00612845,2445.6,2445.1,0.00612845]
[1725035317213,0.00612845,2445.6,2445.5,0.40893]
[1725035317413,0.00612845,2445.6,2445.4,3.2078]
[1725035317414,1.02137,2447.9,2445.4,3.2078]
[1725035317617,8.218,2449.1,2445.2,4.0896]
[1725035317618,40.8,2446.5,2445.2,0.40897]
[1725035317815,40.8,2446.5,2445.1,0.00612845]
[1725035317816,4.2919816,2446.2,2445.1,0.00612845]
[1725035318031,3.2078,2445.9,2445.1,0.00612845]
[1725035318318,4.29818346,2446.1,2445.1,0.00612845]
[1725035318507,7.49357974,2446.2,2445.1,0.00612845]
[1725035318508,0.00612845,2445.7,2445.1,0.00612845]
[1725035318709,0.00612845,2445.7,2445.3,3.61676]
[1725035318909,0.00612845,2445.7,2445.3,3.2078]
[1725035319417,0.00612845,2445.7,2445.2,3.2078]
[1725035319615,0.40872,2446.8,2445.8,0.40888]
[1725035319811,3.2078,2446.6,2445.6,3.2078]
[1725035320014,3.2078,2446.6,2445.8,0.40888]
[1725035320015,4.55504639,2446.4,2445.8,0.40888]
[1725035320212,40.8,2446.6,2445.7,3.61669]
[1725035320213,44.0078,2446.6,2445.7,3.61669]
[1725035320416,40.8,2446.6,2446.1,3.2078]
[1725035320716,40.8,2446.6,2445.9,0.40885]
[1725035320717,0.00612845,2446.6,2446.0,0.40883]
[1725035320920,0.00612845,2446.6,2446.2,3.2078]
[1725035321224,0.00612845,2446.6,2446.5,3.61656]
[1725035321520,1.02131,2448.0,2446.5,3.61656]
[1725035321521,0.40855,2447.8,2446.5,3.2078]
[1725035321716,3.2078,2447.7,2446.9,0.40868]
[1725035321922,3.2078,2447.7,2446.2,7.57082]
[1725035321923,4.74527509,2447.7,2447.3,3.2078]
[1725035322107,4.74527509,2447.7,2447.0,3.2078]
[1725035322423,4.74527509,2447.7,2446.2,7.57082]
[1725035322424,0.00612845,2447.6,2447.4,3.6164]
[1725035322723,4.43032294,2447.5,2447.1,0.00612845]
[1725035323317,0.00612845,2447.6,2447.1,0.00612845]
[1725035323709,3.2078,2447.5,2447.1,0.00612845]
[1725035323907,4.0864,2447.4,2447.1,0.00612845]
[1725035324310,4.31623212,2447.3,2447.1,0.00612845]
[1725035324514,0.41470845,2447.6,2447.1,0.00612845]
[1725035324819,4.31623212,2447.5,2447.1,0.00612845]
[1725035325126,0.00612845,2447.6,2447.1,0.00612845]
[1725035325318,4.84679211,2447.5,2447.1,0.00612845]
[1725035325512,4.43819211,2447.5,2447.1,0.00612845]
[1725035326020,4.43819211,2447.5,2443.9,23.07717874]
[1725035326021,3.2078,2447.2,2446.3,3.2078]
[1725035326419,0.40876,2446.6,2445.9,3.2078]
[1725035326624,3.6165,2446.9,2446.1,0.40882]
[1725035326916,3.2078,2446.9,2446.4,3.2078]
[1725035327125,0.86233428,2446.8,2446.4,3.21392845]
[1725035327426,0.8302,2447.1,2446.4,0.00612845]
[1725035327616,0.40869,2447.0,2446.4,0.00612845]
[1725035327820,4.62261631,2447.0,2446.6,3.2078]
[1725035328021,0.40864,2447.3,2446.6,3.2078]
[1725035328325,4.35658118,2447.2,2446.8,0.40871]
[1725035328526,4.35658118,2447.2,2446.4,0.00612845]
[1725035328527,4.35658118,2447.2,2447.1,3.2078]
[1725035328719,4.35658118,2447.2,2446.9,0.4087]
[1725035328720,0.41471845,2447.6,2446.9,0.4087]
[1725035329020,0.41471845,2447.6,2447.2,3.2078]
[1725035329021,4.35658118,2447.4,2447.2,3.2078]
[1725035329226,4.35658118,2447.4,2446.9,3.2078]
[1725035329418,3.2078,2447.2,2446.4,0.00612845]
[1725035329624,0.00612845,2447.6,2446.4,0.00612845]
[1725035329625,4.28863213,2447.3,2446.7,3.2078]
[1725035329816,4.28863213,2447.3,2446.8,0.4087]
[1725035330017,4.69723213,2447.5,2446.5,3.2078]
[1725035330343,0.00612845,2447.6,2446.9,0.40869]
[1725035330620,0.00612845,2447.6,2447.0,3.2078]
[1725035330621,4.7256164,2447.4,2447.0,3.2078]
[1725035330827,0.00612845,2447.6,2447.3,3.2078]
[1725035330828,4.7256164,2447.5,2447.3,3.2078]
[1725035331019,0.00612845,2447.6,2447.3,3.2078]
[1725035331215,0.00612845,2447.6,2447.3,7.2934]
[1725035331423,0.00612845,2447.6,2447.5,0.4086]
[1725035331823,0.00612845,2447.6,2447.5,4.4942]
[1725035332330,0.00612845,2447.6,2447.3,3.2078]
[1725035332524,0.00612845,2447.6,2447.4,0.4086]
[1725035332727,0.00612845,2447.6,2447.5,0.4086]
[1725035333025,0.00612845,2447.6,2447.5,4.4942]
[1725035333518,0.8021,2448.6,2447.5,10.0856]
[1725035333719,0.40846,2448.4,2447.9,3.2078]
[1725035333923,4.61488973,2448.3,2447.9,3.2078]
[1725035334121,4.27608269,2448.5,2447.2,7.57041]
[1725035334122,4.27608269,2448.5,2448.2,3.2078]
[1725035334325,0.40836,2449.0,2448.3,0.40846]
[1725035334629,0.40836,2449.0,2448.2,3.2078]
[1725035334630,0.00612845,2448.9,2448.6,3.2078]
[1725035334823,0.00612845,2448.9,2448.5,3.2078]
[1725035335331,0.00612845,2448.9,2448.4,0.00612845]
[1725035335332,0.00612845,2448.9,2448.4,0.41456845]
[1725035335529,0.00612845,2448.9,2448.5,3.2078]
[1725035335717,0.00612845,2448.9,2448.8,3.2078]
[1725035335921,0.00612845,2448.9,2448.8,3.61618]
[1725035336128,0.00612845,2448.9,2448.8,7.291]
[1725035336325,0.00612845,2448.9,2448.8,7.69938]
[1725035337328,0.00612845,2448.9,2448.8,13.69938]
[1725035337528,0.00612845,2448.9,2448.8,7.69938]
[1725035337820,4.08932845,2448.9,2448.4,0.00612845]
[1725035338021,4.63443643,2448.9,2448.4,0.00612845]
[1725035338221,0.40843,2448.5,2448.4,0.00612845]
[1725035338625,0.40846,2448.4,2447.7,3.2078]
[1725035338823,4.67927535,2448.5,2447.7,3.2078]
[1725035339024,4.67927535,2448.5,2447.8,0.40854]
[1725035339025,40.8,2448.4,2447.8,0.40854]
[1725035339225,40.8,2448.4,2447.7,3.2078]
[1725035339427,0.08921642,2448.3,2447.7,3.2078]
[1725035339618,0.40848,2448.2,2447.8,0.00612845]
[1725035339814,0.08921642,2448.3,2447.8,0.00612845]
[1725035339815,0.4085,2448.1,2447.8,0.00612845]
[1725035340019,4.38457553,2448.1,2447.8,0.00612845]
[1725035340221,0.40847,2448.3,2447.8,0.00612845]
[1725035340416,0.4085,2448.1,2447.8,0.00612845]
[1725035340622,4.49365287,2448.1,2447.8,0.00612845]
[1725035340823,0.40853,2447.9,2447.8,0.00612845]
[1725035341029,1.02117,2448.3,2447.8,0.00612845]
[1725035341030,4.49365287,2448.3,2447.8,0.00612845]
[1725035341327,40.8,2448.4,2447.8,0.00612845]
[1725035341828,0.40851,2448.1,2447.8,0.00612845]
[1725035342128,7.50749105,2448.3,2447.8,0.00612845]
[1725035342129,0.40853,2447.9,2447.8,0.00612845]
[1725035342429,4.77504662,2447.9,2447.8,0.00612845]
[1725035342724,0.40864,2447.3,2446.9,3.2078]
[1725035343027,14.45211662,2447.9,2447.0,3.2078]
[1725035343028,0.8465,2447.8,2447.0,3.2078]
[1725035343227,40.8,2447.7,2447.5,3.2078]
[1725035343525,4.69366824,2447.8,2447.6,4.0856]
[1725035343725,0.00612845,2447.8,2447.4,0.00612845]
[1725035343925,0.40857,2447.7,2447.4,0.00612845]
[1725035344128,0.00612845,2447.8,2447.4,0.00612845]
[1725035344328,0.00612845,2447.8,2447.6,3.2078]
[1725035344526,0.00612845,2447.8,2447.7,5.30856]
[1725035344719,0.00612845,2447.8,2447.7,9.39416]
[1725035344920,0.8465,2448.6,2447.7,14.9856]
[1725035345126,0.8465,2448.6,2448.0,0.4085]
[1725035345127,1.25491,2448.6,2448.0,0.4085]
[1725035345327,4.44237942,2448.5,2448.0,3.2078]
[1725035345631,1.27299,2448.8,2448.2,3.61628]
[1725035345930,4.22859,2449.3,2448.5,3.2078]
[1725035345931,0.00612845,2448.7,2448.5,3.2078]
[1725035346129,0.00612845,2448.7,2448.4,0.40844]
[1725035346130,0.00612845,2448.7,2448.6,3.61621]
[1725035346632,0.8646,2449.5,2448.7,0.40839]
[1725035346817,0.8646,2449.5,2448.7,3.2078]
[1725035347018,3.2078,2449.3,2448.4,0.00612845]
[1725035347526,4.28440534,2449.4,2448.8,3.2078]
[1725035347527,0.00612845,2449.1,2448.8,3.2078]
[1725035347919,0.00612845,2449.1,2448.8,3.61617]
[1725035348127,0.00612845,2449.1,2448.9,0.40836]
[1725035348325,0.00612845,2449.1,2448.8,3.2078]
[1725035348326,0.00612845,2449.1,2449.0,0.40835]
[1725035348821,0.8364,2450.0,2449.1,0.40832]
[1725035349022,40.8,2450.2,2449.6,3.2078]
[1725035349220,40.8,2450.2,2449.1,4.9]
[1725035349221,40.8,2450.2,2449.4,3.2078]
[1725035349425,3.2078,2450.7,2450.0,3.2078]
[1725035349632,0.40809,2450.6,2450.0,3.2078]
[1725035349831,45.13820349,2450.6,2450.1,0.00612845]
[1725035350424,0.00608286,2450.6,2450.3,3.2078]
[1725035351329,4.54964082,2450.5,2450.1,0.00612845]
[1725035351527,0.00608286,2450.6,2450.4,3.2078]
[1725035351726,0.00608286,2450.6,2450.1,0.00612845]
[1725035351727,0.41416286,2450.6,2450.1,3.21392845]
[1725035351930,0.00608286,2450.6,2450.1,3.21392845]
[1725035352727,4.64959143,2450.5,2450.1,3.21392845]
[1725035353030,4.64959143,2450.5,2450.4,3.2078]
[1725035353333,0.00608286,2450.6,2450.4,3.2078]
[1725035353632,0.00608286,2450.6,2450.5,3.2078]
[1725035353822,0.00608286,2450.6,2450.4,3.2078]
[1725035354224,0.00608286,2450.6,2450.4,7.2886]
[1725035354737,3.2078,2452.0,2451.5,0.40791]
[1725035355035,3.2078,2452.2,2451.4,3.2078]
[1725035355233,4.4098814,2451.9,2451.4,3.2078]
[1725035355434,5.37009231,2452.4,2451.3,3.2078]
[1725035355626,0.8619,2452.4,2451.7,0.40788]
[1725035355822,0.8619,2452.4,2451.6,8.1078]
[1725035355823,0.8619,2452.4,2451.8,0.00612845]
[1725035356023,41.6619,2452.4,2451.8,3.21392845]
[1725035356239,4.0676,2453.1,2451.8,3.21392845]
[1725035356530,4.32374907,2452.7,2452.3,4.9]
[1725035356931,4.0776,2452.7,2452.1,3.2078]
[1725035357131,44.0078,2452.9,2452.2,3.2078]
[1725035357132,4.32374907,2452.6,2452.2,3.2078]
[1725035357522,40.8,2452.9,2452.2,3.2078]
[1725035357724,4.32312192,2452.8,2451.9,3.2078]
[1725035358035,4.32312192,2452.8,2451.8,0.00612845]
[1725035358234,0.40778,2452.4,2451.8,0.00612845]
[1725035358427,3.2078,2452.6,2451.8,0.00612845]
[1725035358626,40.8,2452.9,2451.8,0.00612845]
[1725035358627,4.48224887,2452.3,2451.8,0.00612845]
[1725035358937,0.40781,2452.2,2451.8,0.00612845]
[1725035359130,4.45842,2452.2,2451.8,0.00612845]
[1725035359434,4.5384335,2452.1,2451.8,0.00612845]
[1725035359737,0.00608598,2451.9,2451.3,3.2078]
[1725035360434,4.58454788,2451.8,2450.8,4.9]
[1725035360627,4.58454788,2451.8,2451.3,3.2078]
[1725035360931,0.00608598,2451.9,2451.6,3.2078]
[1725035361137,0.00608598,2451.9,2451.8,0.40788]
[1725035361438,0.00608598,2451.9,2451.6,3.2078]
[1725035362135,0.00608598,2451.9,2451.6,3.6157]
[1725035362337,0.00608598,2451.9,2451.6,3.2078]
[1725035363034,0.00608598,2451.9,2451.7,4.0784]
[1725035363237,0.00608598,2451.9,2451.8,4.48628]
[1725035363446,0.8598,2453.1,2451.8,0.40788]
[1725035363634,4.0592,2453.9,2452.7,3.2078]
[1725035363932,4.0592,2453.9,2452.2,4.9]
[1725035363933,3.2078,2453.6,2452.2,4.9]
[1725035364137,3.2078,2453.6,2451.8,0.20780815]
[1725035364138,3.2078,2453.3,2452.3,3.2078]
[1725035364328,0.40774,2452.7,2452.3,3.2078]
[1725035364526,0.40772,2452.8,2452.6,0.00611571]
[1725035364733,0.40776,2452.6,2451.8,3.2078]
[1725035364933,0.40775,2452.6,2451.8,3.2078]
[1725035365132,0.40781,2452.3,2451.8,3.2078]
[1725035365327,4.637365,2452.5,2451.4,3.2078]
[1725035365530,4.58450533,2452.2,2452.0,3.2078]
[1725035365727,4.58450533,2452.2,2451.0,0.8294]
[1725035365728,0.00611571,2452.2,2451.7,3.62180571]
[1725035365929,0.00611571,2452.2,2451.8,3.2078]
[1725035366129,0.00611571,2452.2,2451.7,0.00611571]
[1725035366130,4.68662925,2452.1,2451.7,0.00611571]
[1725035366747,5.09445925,2452.1,2451.7,0.00611571]
[1725035366930,4.0784,2452.0,2451.7,0.00611571]
[1725035367128,3.2078,2451.8,2451.1,3.2078]
[1725035367335,0.40798,2451.3,2450.4,3.2078]
[1725035367537,0.40797,2451.3,2450.5,3.2078]
[1725035367735,45.19844741,2451.2,2450.4,3.2078]
[1725035367937,48.40624741,2451.2,2450.4,3.2078]
[1725035368138,48.40624741,2451.2,2450.7,3.2078]
[1725035368139,0.00611571,2451.0,2450.7,3.2078]
[1725035368445,4.51133503,2451.1,2451.0,0.40801]
[1725035368637,3.2078,2452.2,2451.0,0.40801]
[1725035368638,3.2078,2452.2,2451.0,7.69581]
[1725035368834,4.51133503,2451.8,2451.1,0.40798]
[1725035369141,40.8,2451.7,2451.1,0.40799]
[1725035369439,40.8,2451.7,2451.3,3.2078]
[1725035369440,0.00611571,2451.6,2451.3,3.2078]
[1725035369636,0.00611571,2451.6,2451.0,3.2078]
[1725035369835,4.28558526,2451.5,2451.0,3.2078]
[1725035370232,0.00611571,2451.6,2451.0,3.2078]
[1725035370732,0.00611571,2451.6,2450.6,0.00611571]
[1725035370733,4.49619607,2451.5,2450.6,0.00611571]
[1725035371047,0.408,2451.1,2450.6,0.00611571]
[1725035371242,3.2078,2450.9,2450.6,0.00611571]
[1725035371435,3.2078,2450.7,2449.7,3.2078]
[1725035371641,4.938,2451.4,2449.3,4.9]
[1725035371642,0.4082,2449.9,2449.3,3.2078]
[1725035371944,0.40825,2449.6,2448.8,3.2078]
[1725035372145,4.52192408,2449.8,2449.1,3.2078]
[1725035372346,4.52192408,2449.8,2449.3,3.2078]
[1725035372537,4.52192408,2449.8,2449.6,3.2078]
[1725035372538,0.00611571,2449.8,2449.6,3.2078]
[1725035373047,8.33690016,2449.7,2449.6,3.2078]
[1725035373248,8.33690016,2449.7,2449.3,0.00611571]
[1725035373543,4.25450016,2449.7,2449.3,0.00611571]
[1725035373747,4.66273016,2449.7,2449.3,0.00611571]
[1725035373935,4.25450016,2449.7,2449.3,0.00611571]
[1725035374137,7.46230016,2449.7,2449.3,0.00611571]
[1725035374342,4.25450016,2449.7,2449.3,0.00611571]
[1725035374544,4.0824,2449.6,2449.3,0.00611571]
[1725035374748,4.0824,2449.6,2448.2,3.2078]
[1725035374749,8.51608,2449.4,2448.2,3.2078]
[1725035374933,8.51608,2449.4,2447.5,0.60941917]
[1725035374934,3.2078,2449.3,2448.5,3.2078]
[1725035375139,7.66494828,2449.3,2448.4,3.2078]
[1725035375438,0.20023116,2449.2,2448.4,3.2078]
[1725035375637,4.71933345,2449.2,2448.4,3.2078]
[1725035375848,3.61615,2449.0,2448.4,3.2078]
[1725035376047,3.61615,2449.0,2448.6,0.00611571]
[1725035376048,0.00611571,2449.0,2448.6,0.00611571]
[1725035376249,4.51910229,2448.9,2448.6,0.00611571]
[1725035377250,0.00611571,2449.0,2448.7,4.084]
[1725035377446,0.00611571,2449.0,2448.6,0.00611571]
[1725035377644,4.52335524,2448.9,2448.6,0.00611571]
[1725035378342,4.084,2448.8,2448.6,0.00611571]
[1725035378539,4.52335524,2448.9,2448.6,0.00611571]
[1725035378739,0.00611571,2449.0,2448.6,0.00611571]
[1725035378740,4.55687205,2448.7,2448.6,0.00611571]
[1725035378939,4.55687205,2448.9,2448.6,0.00611571]
[1725035379246,0.00611571,2449.0,2448.8,0.40838]
[1725035379437,0.00611571,2449.0,2448.9,4.49156]
[1725035379641,40.8,2450.2,2449.2,0.4083]
[1725035379845,1.6521,2450.4,2449.4,3.2078]
[1725035380037,4.65318186,2450.0,2449.5,0.40825]
[1725035380240,4.49602238,2450.3,2449.8,3.2078]
[1725035380445,1.6521,2450.4,2449.4,3.2078]
[1725035380651,4.58378512,2449.9,2449.4,3.2078]
[1725035380947,3.61601,2449.8,2449.7,0.00611571]
[1725035381141,4.56035249,2449.8,2449.7,0.00611571]
[1725035381343,0.40823,2449.7,2449.1,3.2078]
[1725035381538,3.2078,2449.8,2449.1,3.2078]
[1725035381749,4.33455721,2449.6,2449.4,3.2078]
[1725035381940,4.33455721,2450.0,2448.7,0.82]
[1725035381941,4.33455721,2449.7,2449.0,3.2078]
[1725035382141,0.40822,2449.8,2449.0,3.2078]
[1725035382343,4.33455721,2449.9,2449.2,0.00611571]
[1725035382550,4.63193213,2449.7,2449.2,0.00611571]
[1725035382850,0.40818,2450.0,2449.2,3.21391571]
[1725035383048,0.40819,2450.0,2449.4,0.0041]
[1725035383349,4.63193213,2449.9,2449.4,0.0041]
[1725035383548,5.04013213,2449.9,2449.4,0.0041]
[1725035383754,4.85721772,2450.0,2449.4,0.0041]
[1725035384049,3.21391571,2450.1,2449.4,0.0041]
[1725035384050,4.44902772,2449.8,2449.4,0.0041]
[1725035384348,7.58140533,2449.9,2449.4,0.0041]
[1725035384657,0.40823,2449.8,2449.4,0.0041]
[1725035384853,0.40824,2449.7,2449.4,0.0041]
[1725035385154,4.37360533,2449.8,2449.4,0.0041]
[1725035385357,0.40823,2449.7,2449.4,0.0041]
[1725035385650,4.0824,2449.7,2449.4,0.0041]
[1725035385840,40.8,2449.6,2449.4,0.0041]
[1725035386043,4.54370903,2449.6,2449.4,0.0041]
[1725035386245,4.54370903,2449.9,2449.4,3.2119]
[1725035386552,40.80611571,2450.1,2449.4,0.0041]
[1725035386850,4.40682539,2449.8,2449.4,0.0041]
[1725035387055,4.40682539,2449.9,2449.4,0.41238]
[1725035387242,0.00611571,2450.1,2449.4,0.0041]
[1725035387452,0.00611571,2450.1,2449.8,0.4082]
[1725035387649,0.00611571,2450.1,2449.8,3.2078]
[1725035387850,0.00611571,2450.1,2450.0,0.40818]
[1725035388044,0.9861,2450.9,2450.1,0.40815]
[1725035388248,0.8504,2451.1,2449.7,5.92055]
[1725035388449,0.8504,2451.1,2450.1,3.61595]
[1725035388651,4.67457372,2450.8,2450.0,3.2078]
[1725035388853,4.67457372,2451.0,2450.3,3.2078]
[1725035389047,4.67457372,2450.8,2450.3,0.40812]
[1725035389241,4.67457372,2450.8,2449.7,6.71367]
[1725035389242,4.67457372,2450.8,2450.2,0.40814]
[1725035389446,0.40805,2450.8,2450.1,0.40815]
[1725035389659,0.00611571,2450.9,2449.7,5.6931]
[1725035389660,0.41414571,2450.9,2450.3,3.2078]
[1725035389854,0.00611571,2450.9,2450.3,3.61593]
[1725035390054,0.00611571,2450.9,2449.7,5.6931]
[1725035390055,4.68165938,2450.8,2450.2,0.40814]
[1725035390449,4.68165938,2450.8,2449.7,5.6931]
[1725035390450,4.68165938,2450.8,2450.3,3.2078]
[1725035390643,4.68165938,2450.8,2450.4,3.61591]
[1725035390844,0.00611571,2450.9,2450.5,0.40809]
[1725035391053,0.00611571,2450.9,2450.5,0.41420571]
[1725035391359,0.00611571,2450.9,2450.5,0.00611571]
[1725035391655,0.00611571,2450.9,2450.6,3.61587]
[1725035391954,0.00611571,2450.9,2450.6,7.2878]
[1725035392152,0.00611571,2450.9,2450.6,3.61587]
[1725035392348,0.00611571,2450.9,2450.5,0.00611571]
[1725035392556,0.41414571,2450.9,2450.5,0.00611571]
[1725035392763,4.9431504,2450.8,2450.5,0.00611571]
[1725035393157,4.5350904,2450.8,2450.5,0.00611571]
[1725035393861,0.00611571,2450.9,2450.5,0.41420571]
[1725035394153,4.31387773,2450.8,2450.5,0.00611571]
[1725035394360,0.40814,2450.3,2449.7,0.40822]
[1725035394550,3.2078,2450.1,2449.5,3.2078]
[1725035394754,4.31489617,2450.2,2449.5,3.2078]
[1725035394949,4.72307617,2450.0,2449.5,3.2078]
[1725035395159,4.22813,2450.4,2449.5,3.2078]
[1725035395160,1.02036,2450.3,2449.5,3.2078]
[1725035395459,5.33525617,2450.3,2449.7,0.00611571]
[1725035395760,4.44775195,2450.2,2449.8,0.40821]
[1725035396150,4.44775195,2450.3,2449.7,0.00611571]
[1725035396353,0.4081,2450.5,2449.9,0.40819]
[1725035396558,4.5370713,2450.4,2449.9,0.40819]
[1725035396758,0.40811,2450.5,2450.0,0.40818]
[1725035397058,0.00611571,2450.9,2450.4,3.2078]
[1725035397261,0.00611571,2450.9,2450.1,4.22821]
[1725035397457,0.40805,2450.8,2450.2,0.40815]
[1725035397663,4.34218712,2450.8,2450.1,3.2078]
[1725035397874,0.40807,2450.7,2450.1,3.61595]
[1725035398069,4.34218712,2450.8,2450.1,3.2078]
[1725035398257,4.34218712,2450.6,2449.8,3.2078]
[1725035398656,0.40808,2450.6,2450.0,0.40817]
[1725035398857,0.20922978,2450.7,2449.8,3.2078]
[1725035399057,4.9,2450.4,2449.7,0.00611571]
[1725035399561,0.40817,2450.1,2449.7,0.00611571]
[1725035399762,0.40816,2450.2,2449.7,0.00611571]
[1725035400263,4.45924653,2450.1,2449.7,0.00611571]
[1725035400466,4.9,2450.4,2449.7,0.00611571]
[1725035400654,4.36849243,2450.2,2449.7,0.00611571]
[1725035400851,4.9,2450.4,2449.7,0.00611571]
[1725035401056,3.2078,2450.2,2449.7,0.00611571]
[1725035401257,4.36849243,2450.1,2449.7,0.00611571]
[1725035401460,3.2078,2450.6,2450.0,0.40817]
[1725035401762,4.6772959,2450.2,2449.9,3.2078]
[1725035401968,4.6772959,2450.2,2449.7,0.00611571]
[1725035402266,3.2078,2450.6,2449.7,0.00611571]
[1725035402467,3.2078,2450.0,2449.7,0.00611571]
[1725035402655,0.40821,2449.8,2449.7,0.00611571]
[1725035402860,0.40823,2449.7,2448.8,3.2078]
[1725035403058,44.927,2449.8,2449.1,3.2078]
[1725035403257,49.24501219,2449.8,2449.1,3.2078]
[1725035403456,49.24501219,2449.8,2448.5,5.0933]
[1725035403457,4.58678537,2449.6,2448.8,0.40838]
[1725035403663,7.79458537,2449.7,2448.7,3.2078]
[1725035403858,7.79458537,2449.7,2449.0,0.00611571]
[1725035404060,0.00611571,2449.4,2449.3,0.4083]
[1725035404455,3.2078,2450.6,2449.3,10.0824]
[1725035404665,0.40804,2450.9,2450.1,0.40816]
[1725035404867,40.8,2451.3,2450.0,3.2078]
[1725035404868,4.67321428,2450.5,2450.0,3.2078]
[1725035405064,2.0049,2451.4,2449.8,4.9]
[1725035405065,4.67321428,2450.9,2450.3,3.2078]
[1725035405381,2.0049,2451.4,2449.4,1.99386]
[1725035405382,0.00611571,2450.8,2450.4,0.00611571]
[1725035405556,4.52509557,2450.8,2450.4,0.00611571]
[1725035405866,4.52509557,2450.8,2450.4,3.21391571]
[1725035405867,0.00611571,2450.8,2450.4,3.21391571]
[1725035406069,0.00611571,2450.8,2450.7,3.61586]
[1725035406366,0.00611571,2450.8,2450.4,3.21391571]
[1725035407165,0.00611571,2450.8,2450.7,3.61586]
[1725035407371,0.9563,2451.9,2451.5,0.40792]
[1725035407665,40.8,2452.3,2451.5,3.2078]
[1725035407968,3.2078,2452.5,2451.8,3.2078]
[1725035407969,4.37498082,2452.1,2451.8,3.2078]
[1725035408164,4.37498082,2452.1,2451.5,3.2078]
[1725035408357,4.69669337,2452.2,2451.7,0.00611571]
[1725035408656,0.00611571,2452.2,2451.7,0.41400571]
[1725035408861,4.44423876,2452.1,2451.7,0.41400571]
[1725035409059,0.00611571,2452.2,2451.8,3.2078]
[1725035409261,0.00611571,2452.2,2451.9,3.2078]
[1725035409462,0.00611571,2452.2,2452.1,0.40783]
[1725035409662,0.00611571,2452.2,2452.0,0.40784]
[1725035409867,0.00611571,2452.2,2451.9,3.61565]
[1725035410059,0.00611571,2452.2,2451.9,3.2078]
[1725035410266,0.00611571,2452.2,2451.9,3.61566]
[1725035410567,0.00611571,2452.2,2452.1,0.40783]
[1725035410959,0.00611571,2452.2,2452.1,4.48623]
[1725035411162,0.9747,2453.0,2452.5,0.40775]
[1725035411373,0.9747,2453.0,2451.8,0.9053]
[1725035411374,0.9747,2453.0,2452.4,0.40777]
[1725035411675,4.28029939,2452.9,2452.3,0.40779]
[1725035411876,4.28029939,2452.9,2451.8,0.9053]
[1725035411877,4.28029939,2452.9,2452.5,0.40776]
[1725035412067,4.28029939,2452.9,2451.8,0.9053]
[1725035412068,4.68800939,2452.9,2452.1,3.2078]
[1725035412272,0.00611571,2452.7,2452.1,3.2078]
[1725035412468,3.2078,2452.5,2452.1,3.2078]
[1725035412669,3.2078,2452.5,2451.7,0.00611571]
[1725035412881,4.50782388,2452.4,2451.7,0.00611571]
[1725035413068,8.58622388,2452.4,2451.7,0.00611571]
[1725035413266,3.2078,2452.5,2451.7,0.00611571]
[1725035413267,0.40781,2452.2,2451.7,0.00611571]
[1725035413469,4.28358561,2452.3,2451.7,0.00611571]
[1725035413669,0.20025468,2452.1,2451.9,3.2078]
[1725035413875,0.00611571,2452.7,2452.0,3.2078]
[1725035413876,4.28358561,2452.4,2452.0,3.2078]
[1725035414177,4.28358561,2452.6,2451.7,3.21391571]
[1725035414366,45.08358561,2452.6,2452.0,3.2078]
[1725035414569,0.00611571,2452.7,2452.3,3.2078]
[1725035414768,0.00611571,2452.7,2452.4,3.2078]
[1725035415173,0.00611571,2452.7,2451.8,2.12888]
[1725035415174,0.00611571,2452.7,2452.6,3.61555]
[1725035415386,0.00611571,2452.7,2452.3,3.2078]
[1725035415563,0.00611571,2452.7,2452.5,0.40775]
[1725035415770,0.00611571,2452.7,2452.6,3.61555]
[1725035416175,0.00611571,2452.7,2452.6,0.40775]
[1725035416368,0.00611571,2452.7,2452.6,7.69315]
[1725035416566,0.00611571,2452.7,2452.3,3.2078]
[1725035416781,0.00611571,2452.7,2451.8,2.12888]
[1725035416782,4.51445402,2452.7,2452.0,3.2078]
[1725035416968,0.40777,2452.5,2452.0,3.2078]
[1725035417173,40.8,2452.4,2452.0,3.2078]
[1725035417467,45.71611831,2452.4,2452.0,3.2078]
[1725035417667,8.30491,2452.3,2451.7,0.00611571]
[1725035417974,8.30491,2452.3,2450.7,1.02013]
[1725035417975,8.1078,2452.0,2450.8,3.2078]
[1725035418176,3.2078,2451.7,2450.8,3.2078]
[1725035418381,4.61795165,2451.9,2450.8,3.2078]
[1725035418382,3.2078,2451.5,2450.8,3.2078]
[1725035418677,3.2078,2451.4,2450.8,3.2078]
[1725035418876,3.2078,2451.4,2450.1,0.40815]
[1725035418877,0.40805,2450.8,2450.1,0.40815]